fUSD/lending_fUSD_20250607
["ID","MTS","AMOUNT","RATE_DAILY","PERIOD"]
[364895017,1749285473869,480.0,0.00035616,120]
[364895018,1749285474120,480.0,0.00035616,120]
[364895019,1749285474310,480.0,0.00035616,120]
[364895020,1749285474363,480.0,0.00035616,120]
[364895021,1749285474550,480.0,0.00035616,120]
[364895022,1749285475048,480.0,0.00035616,120]
[364895023,1749285475155,480.0,0.00035616,120]
[364895024,1749285475414,480.0,0.00035616,120]
[364895025,1749285475657,480.0,0.00035616,120]
[364895026,1749285475921,312.92015723,0.00035616,120]
[364895027,1749285478564,480.0,0.00035616,120]
[364895028,1749285478798,480.0,0.00035616,120]
[364895029,1749285479041,480.0,0.00035616,120]
[364895030,1749285479308,480.0,0.00035616,120]
[364895031,1749285479590,480.0,0.00035616,120]
[364895032,1749285479776,360.0,0.00035616,120]
[364895033,1749285480125,480.0,0.00035616,120]
[364895034,1749285480369,483.6766769,0.00035616,120]
[364895035,1749285482369,480.0,0.00035616,120]
[364895036,1749285482620,480.0,0.00035616,120]
[364895037,1749285482793,480.0,0.00035616,120]
[364895038,1749285483057,441.9268792,0.00035616,120]
[364895039,1749285484360,480.0,0.00035616,120]
[364895040,1749285484560,480.0,0.00035616,120]
[364895041,1749285484814,480.0,0.00035616,120]
[364895042,1749285485050,480.0,0.00035616,120]
[364895043,1749285485193,480.0,0.00035616,120]
[364895044,1749285485336,480.0,0.00035616,120]
[364895045,1749285485451,480.0,0.00035616,120]
[364895046,1749285485688,480.0,0.00035616,120]
[364895047,1749285485749,480.0,0.00035616,120]
[364895048,1749285485938,480.0,0.00035616,120]
[364895049,1749285486185,494.17376144,0.00035616,120]
[364895050,1749285488278,466.2013567,0.00035616,120]
[364895051,1749285489753,480.0,0.00035616,120]
[364895052,1749285489991,480.0,0.00035616,120]
[364895053,1749285490363,460.00088065,0.00035616,120]
[364895054,1749285491048,480.0,0.00035616,120]
[364895055,1749285491352,480.0,0.00035616,120]
[364895056,1749285491598,480.0,0.00035616,120]
[364895057,1749285491841,480.0,0.00035616,120]
[364895058,1749285492038,480.0,0.00035616,120]
[364895059,1749285492262,480.0,0.00035616,120]
[364895060,1749285492498,480.0,0.00035616,120]
[364895061,1749285492742,480.0,0.00035616,120]
[364895062,1749285495318,509.47112471,0.00035616,120]
[364895063,1749285497521,480.0,0.00035616,120]
[364895064,1749285497764,480.0,0.00035616,120]
[364895065,1749285498016,496.45483035,0.00035616,120]
[364895066,1749285504809,500.0,0.00035616,120]
[364895067,1749285505039,500.0,0.00035616,120]
[364895068,1749285505234,480.0,0.00035616,120]
[364895069,1749285505293,500.0,0.00035616,120]
[364895070,1749285505553,500.0,0.00035616,120]
[364895071,1749285505788,480.0,0.00035616,120]
[364895072,1749285505847,500.0,0.00035616,120]
[364895073,1749285506014,480.0,0.00035616,120]
[364895074,1749285506071,500.0,0.00035616,120]
[364895075,1749285506258,480.0,0.00035616,120]
[364895076,1749285506317,500.0,0.00035616,120]
[364895077,1749285506516,480.0,0.00035616,120]
[364895078,1749285506585,500.0,0.00035616,120]
[364895079,1749285506755,480.0,0.00035616,120]
[364895081,1749285508834,427.3457674,0.00035616,120]
[364895082,1749285508967,480.0,0.00035616,120]
[364895083,1749285509029,480.0,0.00035616,120]
[364895084,1749285509221,480.0,0.00035616,120]
[364895085,1749285509459,487.31677098,0.00035616,120]
[364895086,1749285510100,480.0,0.00035616,120]
[364895087,1749285510330,480.0,0.00035616,120]
[364895088,1749285510617,480.0,0.00035616,120]
[364895089,1749285510865,480.0,0.00035616,120]
[364895090,1749285511099,480.0,0.00035616,120]
[364895091,1749285511332,354.19033185,0.00035616,120]
[364895092,1749285513899,480.0,0.00035616,120]
[364895093,1749285513960,480.0,0.00035616,120]
[364895094,1749285514038,493.21366376,0.00035616,120]
[364895095,1749285514103,480.0,0.00035616,120]
[364895096,1749285514177,480.0,0.00035616,120]
[364895097,1749285514242,480.0,0.00035616,120]
[364895098,1749285514408,480.0,0.00035616,120]
[364895099,1749285514589,480.0,0.00035616,120]
[364895100,1749285514767,480.0,0.00035616,120]
[364895101,1749285514962,480.0,0.00035616,120]
[364895102,1749285515232,225.05,0.00035616,120]
[364895103,1749285517072,480.79945134,0.00035616,120]
[364895104,1749285517451,480.0,0.00035616,120]
[364895105,1749285517719,480.0,0.00035616,120]
[364895106,1749285517964,480.0,0.00035616,120]
[364895107,1749285518213,480.0,0.00035616,120]
[364895108,1749285518458,480.0,0.00035616,120]
[364895109,1749285524641,480.0,0.00035616,120]
[364895110,1749285524760,247.57441204,0.00035616,120]
[364895111,1749285524902,552.87818433,0.00035616,120]
[364895112,1749285525877,480.0,0.00035616,120]
[364895113,1749285526115,480.0,0.00035616,120]
[364895114,1749285526365,480.0,0.00035616,120]
[364895115,1749285526601,480.0,0.00035616,120]
[364895116,1749285526660,480.0,0.00035616,120]
[364895117,1749285526721,480.0,0.00035616,120]
[364895118,1749285526836,480.0,0.00035616,120]
[364895119,1749285526972,569.34428304,0.00035616,120]
[364895120,1749285527077,480.0,0.00035616,120]
[364895121,1749285527540,487.69146044,0.00035616,120]
[364895122,1749285528627,427.14605506,0.00035616,120]
[364895123,1749285532598,487.28168083,0.00035616,120]
[364895124,1749285534298,487.01657088,0.00035616,120]
[364895125,1749285534591,431.98009251,0.00035616,120]
[364895126,1749285536477,431.3303936,0.00035616,120]
[364895127,1749285536603,480.0,0.00035616,120]
[364895128,1749285536838,480.0,0.00035616,120]
[364895129,1749285536913,480.0,0.00035616,120]
[364895130,1749285537069,480.0,0.00035616,120]
[364895131,1749285537157,480.0,0.00035616,120]
[364895132,1749285537327,480.0,0.00035616,120]
[364895133,1749285537408,480.0,0.00035616,120]
[364895134,1749285537572,480.0,0.00035616,120]
[364895135,1749285537670,480.0,0.00035616,120]
[364895136,1749285537917,480.0,0.00035616,120]
[364895137,1749285543104,480.0,0.00035616,120]
[364895138,1749285543355,480.0,0.00035616,120]
[364895139,1749285543606,480.0,0.00035616,120]
[364895140,1749285543802,480.0,0.00035616,120]
[364895141,1749285543935,480.0,0.00035616,120]
[364895142,1749285544048,480.0,0.00035616,120]
[364895143,1749285544182,506.48906902,0.00035616,120]
[364895144,1749285544339,480.0,0.00035616,120]
[364895145,1749285544398,480.0,0.00035616,120]
[364895146,1749285544598,480.0,0.00035616,120]
[364895147,1749285544659,480.0,0.00035616,120]
[364895148,1749285544872,480.0,0.00035616,120]
[364895149,1749285544942,480.0,0.00035616,120]
[364895150,1749285545131,480.0,0.00035616,120]
[364895151,1749285545378,480.0,0.00035616,120]
[364895152,1749285545482,480.0,0.00035616,120]
[364895153,1749285545743,480.0,0.00035616,120]
[364895154,1749285545866,480.0,0.00035616,120]
[364895155,1749285546123,480.0,0.00035616,120]
[364895156,1749285546368,480.0,0.00035616,120]
[364895157,1749285546657,480.0,0.00035616,120]
[364895158,1749285546910,480.0,0.00035616,120]
[364895159,1749285547148,564.36,0.00035616,120]
[364895160,1749285548870,480.0,0.00035616,120]
[364895161,1749285549080,480.0,0.00035616,120]
[364895162,1749285549144,493.70842636,0.00035616,120]
[364895163,1749285549328,389.1744737,0.00035616,120]
[364895164,1749285553308,480.0,0.00035616,120]
[364895165,1749285553648,480.0,0.00035616,120]
[364895166,1749285553901,480.0,0.00035616,120]
[364895167,1749285554149,480.0,0.00035616,120]
[364895168,1749285554391,480.0,0.00035616,120]
[364895169,1749285554669,480.0,0.00035616,120]
[364895170,1749285554928,480.0,0.00035616,120]
[364895171,1749285555347,480.0,0.00035616,120]
[364895172,1749285555559,480.0,0.00035616,120]
[364895173,1749285555835,480.0,0.00035616,120]
[364895174,1749285559397,480.0,0.00035616,120]
[364895175,1749285559627,480.0,0.00035616,120]
[364895176,1749285559876,480.0,0.00035616,120]
[364895177,1749285560149,498.93761496,0.00035616,120]
[364895178,1749285562666,425.07826374,0.00035616,120]
[364895179,1749285563752,485.72205612,0.00035616,120]
[364895180,1749285566039,429.75405372,0.00035616,120]
[364895181,1749285568277,429.02331791,0.00035616,120]
[364895182,1749285569772,480.0,0.00035616,120]
[364895183,1749285570034,490.34155793,0.00035616,120]
[364895184,1749285572355,480.0,0.00035616,120]
[364895185,1749285572644,186.45063177,0.00035616,120]
[364895186,1749285574252,487.64773492,0.00035616,120]
[364895187,1749285578160,488.13758326,0.00035616,120]
[364895188,1749285584200,13644076.64785016,0.00035616,120]
[364895189,1749285618315,3747230.92445852,0.0003,120]
[364895190,1749285624316,-167.69,0.00019178,2]
[364895192,1749285655565,167450.14377611,0.000261,120]
[364895195,1749285671080,1340727.79516165,0.00022,120]
[364895196,1749285696715,300000.0,0.00022,120]
[364895197,1749285704666,10000.0,0.0002112,120]
[364895198,1749285710562,14199.2427322,0.00021,120]
[364895199,1749285719465,14199.2427322,0.00021,120]
[364895200,1749285727782,1601.5145356,0.00021,120]
[364895201,1749285727820,12597.7281966,0.00021,120]
[364895202,1749285747140,1601.5145356,0.00021,120]
[364895203,1749285757410,21000.0,0.0002,120]
[364895204,1749285757437,700000.0,0.0002,120]
[364895205,1749285757484,1279000.0,0.0002,120]
[364895206,1749285766055,721000.0,0.0002,120]
[364895207,1749285773162,700000.0,0.00019,120]
[364895208,1749285773186,1277054.29289727,0.00019,120]
[364895209,1749285781351,700000.0,0.00019,120]
[364895210,1749285788114,1412817.64041406,0.00019,120]
[364895211,1749285788145,25000.0,0.00019,120]
[364895212,1749285797078,3421.91193547,0.00019,120]
[364895213,1749285797102,12948.31875,0.00019,120]
[364895214,1749285797125,12948.31875,0.00019,120]
[364895215,1749285797148,12948.31875,0.00019,120]
[364895216,1749285797171,12948.31875,0.00019,120]
[364895217,1749285797195,12948.31875,0.00019,120]
[364895218,1749285797218,12948.31875,0.00019,120]
[364895219,1749285797241,12948.31875,0.00019,120]
[364895220,1749285797263,12948.31875,0.00019,120]
[364895221,1749285797285,12948.31875,0.00019,120]
[364895222,1749285797307,23559.16163121,0.00019,120]
[364895223,1749285797331,19498.504375,0.00019,120]
[364895224,1749285797351,19498.504375,0.00019,120]
[364895225,1749285797370,19498.504375,0.00019,120]
[364895226,1749285797389,19498.504375,0.00019,120]
[364895227,1749285797408,19498.504375,0.00019,120]
[364895228,1749285797429,19498.504375,0.00019,120]
[364895229,1749285797451,19498.504375,0.00019,120]
[364895230,1749285797472,19498.504375,0.00019,120]
[364895231,1749285797494,19498.504375,0.00019,120]
[364895232,1749285797516,19498.504375,0.00019,120]
[364895233,1749285797537,19498.504375,0.00019,120]
[364895234,1749285797558,19498.504375,0.00019,120]
[364895235,1749285797580,19498.504375,0.00019,120]
[364895236,1749285797602,19498.504375,0.00019,120]
[364895237,1749285797623,19498.504375,0.00019,120]
[364895238,1749285797645,19498.504375,0.00019,120]
[364895239,1749285797665,19498.504375,0.00019,120]
[364895240,1749285797686,19498.504375,0.00019,120]
[364895241,1749285797706,19498.504375,0.00019,120]
[364895242,1749285797725,19498.504375,0.00019,120]
[364895243,1749285797747,19498.504375,0.00019,120]
[364895244,1749285797768,19498.504375,0.00019,120]
[364895245,1749285797788,19498.504375,0.00019,120]
[364895246,1749285797810,19498.504375,0.00019,120]
[364895247,1749285797830,19498.504375,0.00019,120]
[364895248,1749285797852,19498.504375,0.00019,120]
[364895249,1749285797872,19498.504375,0.00019,120]
[364895250,1749285797892,19498.504375,0.00019,120]
[364895251,1749285797914,19498.504375,0.00019,120]
[364895252,1749285797934,19498.504375,0.00019,120]
[364895253,1749285797953,19498.504375,0.00019,120]
[364895254,1749285797975,19498.504375,0.00019,120]
[364895255,1749285797998,19498.504375,0.00019,120]
[364895256,1749285798020,19498.504375,0.00019,120]
[364895257,1749285798043,19498.504375,0.00019,120]
[364895258,1749285798069,19498.504375,0.00019,120]
[364895259,1749285798094,19498.504375,0.00019,120]
[364895260,1749285798116,19498.504375,0.00019,120]
[364895261,1749285798139,19498.504375,0.00019,120]
[364895262,1749285798160,19498.504375,0.00019,120]
[364895263,1749285798185,5580.0,0.00019,120]
[364895264,1749285798209,94158.2162,0.00019,120]
[364895265,1749285798234,94158.2162,0.00019,120]
[364895266,1749285798258,94158.2162,0.00019,120]
[364895267,1749285798284,94158.2162,0.00019,120]
[364895268,1749285798308,94158.2162,0.00019,120]
[364895269,1749285798333,94158.2162,0.00019,120]
[364895270,1749285798358,94158.2162,0.00019,120]
[364895271,1749285798382,94158.2162,0.00019,120]
[364895272,1749285798405,94158.2162,0.00019,120]
[364895273,1749285798428,94158.2162,0.00019,120]
[364895274,1749285798451,94158.2162,0.00019,120]
[364895275,1749285798473,94158.2162,0.00019,120]
[364895276,1749285798496,94158.2162,0.00019,120]
[364895277,1749285798519,94158.2162,0.00019,120]
[364895278,1749285798542,94158.2162,0.00019,120]
[364895279,1749285798564,94158.2162,0.00019,120]
[364895280,1749285798588,94158.2162,0.00019,120]
[364895281,1749285798610,94158.2162,0.00019,120]
[364895282,1749285798633,94158.2162,0.00019,120]
[364895283,1749285798657,94158.2162,0.00019,120]
[364895284,1749285798679,94158.2162,0.00019,120]
[364895285,1749285798702,94158.2162,0.00019,120]
[364895286,1749285798724,94158.2162,0.00019,120]
[364895287,1749285798747,94158.2162,0.00019,120]
[364895288,1749285798769,94158.2162,0.00019,120]
[364895289,1749285798792,94158.2162,0.00019,120]
[364895290,1749285798814,94158.2162,0.00019,120]
[364895291,1749285798836,94158.2162,0.00019,120]
[364895292,1749285798860,94158.2162,0.00019,120]
[364895293,1749285798883,94158.2162,0.00019,120]
[364895294,1749285798909,94158.2162,0.00019,120]
[364895295,1749285798933,94158.2162,0.00019,120]
[364895296,1749285798956,94158.2162,0.00019,120]
[364895297,1749285798979,94158.2162,0.00019,120]
[364895298,1749285799003,94158.2162,0.00019,120]
[364895299,1749285799161,94158.2162,0.00019,120]
[364895300,1749285799188,94158.2162,0.00019,120]
[364895301,1749285799213,94158.2162,0.00019,120]
[364895302,1749285799237,94158.2162,0.00019,120]
[364895303,1749285799261,94158.2162,0.00019,120]
[364895304,1749285799285,94158.2162,0.00019,120]
[364895305,1749285799309,94158.2162,0.00019,120]
[364895306,1749285799332,94158.2162,0.00019,120]
[364895307,1749285799358,94158.2162,0.00019,120]
[364895308,1749285799382,94158.2162,0.00019,120]
[364895309,1749285799406,94158.2162,0.00019,120]
[364895310,1749285799430,94158.2162,0.00019,120]
[364895311,1749285799453,94158.2162,0.00019,120]
[364895312,1749285799477,94158.2162,0.00019,120]
[364895313,1749285799500,94158.2162,0.00019,120]
[364895314,1749285799521,12999.00583333,0.00019,120]
[364895315,1749285799542,12999.00583333,0.00019,120]
[364895316,1749285799564,12999.00583333,0.00019,120]
[364895317,1749285799585,12999.00583333,0.00019,120]
[364895318,1749285799607,12999.00583333,0.00019,120]
[364895319,1749285799628,12999.00583333,0.00019,120]
[364895320,1749285799650,12999.00583333,0.00019,120]
[364895321,1749285799671,12999.00583333,0.00019,120]
[364895322,1749285799693,12999.00583333,0.00019,120]
[364895323,1749285799715,12999.00583333,0.00019,120]
[364895324,1749285799736,12999.00583333,0.00019,120]
[364895325,1749285799756,12999.00583333,0.00019,120]
[364895326,1749285799777,12999.00583333,0.00019,120]
[364895327,1749285799797,12999.00583333,0.00019,120]
[364895328,1749285799819,12999.00583333,0.00019,120]
[364895329,1749285799840,12999.00583333,0.00019,120]
[364895330,1749285799862,12999.00583333,0.00019,120]
[364895331,1749285799883,12999.00583333,0.00019,120]
[364895332,1749285799904,12999.00583333,0.00019,120]
[364895333,1749285799927,12999.00583333,0.00019,120]
[364895334,1749285799947,12999.00583333,0.00019,120]
[364895335,1749285799968,12999.00583333,0.00019,120]
[364895336,1749285799989,12999.00583333,0.00019,120]
[364895337,1749285800011,12999.00583333,0.00019,120]
[364895338,1749285800031,12999.00583333,0.00019,120]
[364895339,1749285800052,12999.00583333,0.00019,120]
[364895340,1749285800075,12999.00583333,0.00019,120]
[364895341,1749285800098,12999.00583333,0.00019,120]
[364895342,1749285800117,12999.00583333,0.00019,120]
[364895343,1749285800139,12999.00583333,0.00019,120]
[364895344,1749285800158,12999.00583333,0.00019,120]
[364895345,1749285800179,12999.00583333,0.00019,120]
[364895346,1749285800198,12999.00583333,0.00019,120]
[364895347,1749285800217,12999.00583333,0.00019,120]
[364895348,1749285800238,12999.00583333,0.00019,120]
[364895349,1749285800257,12999.00583333,0.00019,120]
[364895350,1749285800277,12999.00583333,0.00019,120]
[364895351,1749285800298,12999.00583333,0.00019,120]
[364895352,1749285800321,12999.00583333,0.00019,120]
[364895353,1749285800343,12999.00583333,0.00019,120]
[364895354,1749285800363,12999.00583333,0.00019,120]
[364895355,1749285800383,12999.00583333,0.00019,120]
[364895356,1749285800404,12999.00583333,0.00019,120]
[364895357,1749285800427,12999.00583333,0.00019,120]
[364895358,1749285800447,12999.00583333,0.00019,120]
[364895359,1749285800470,12999.00583333,0.00019,120]
[364895360,1749285800490,12999.00583333,0.00019,120]
[364895361,1749285800511,12999.00583333,0.00019,120]
[364895362,1749285800531,12999.00583333,0.00019,120]
[364895363,1749285800552,12999.00583333,0.00019,120]
[364895364,1749285800573,12999.00583333,0.00019,120]
[364895365,1749285800593,12999.00583333,0.00019,120]
[364895366,1749285800614,12999.00583333,0.00019,120]
[364895367,1749285800634,12999.00583333,0.00019,120]
[364895368,1749285800657,12999.00583333,0.00019,120]
[364895369,1749285800678,12999.00583333,0.00019,120]
[364895370,1749285800698,12999.00583333,0.00019,120]
[364895371,1749285800721,12999.00583333,0.00019,120]
[364895372,1749285800742,12999.00583333,0.00019,120]
[364895373,1749285800764,12999.00583331,0.00019,120]
[364895374,1749285840975,2000000.0,0.000189,120]
[364895375,1749285843104,-151.7267117,0.00019,120]
[364895376,1749285848358,-151.0,0.00019,120]
[364895377,1749285850081,-151.0,0.00019,120]
[364895378,1749285851876,-195.80780132,0.00019,120]
[364895379,1749285853827,-173.68862881,0.00019,120]
[364895380,1749285858106,-294.23374627,0.00019,120]
[364895382,1749285862427,-186.88879322,0.00019,120]
[364895383,1749285863438,400.0,0.000184,6]
[364895384,1749285865768,900.0,0.000185,6]
[364895385,1749285865958,-170.61,0.00019,120]
[364895386,1749285867985,1400.0,0.000186,6]
[364895387,1749285869540,-213.11120678,0.00019,120]
[364895388,1749285873833,-292.77322553,0.000187,6]
[364895389,1749285879283,-192.31822031,0.000187,6]
[364895390,1749285883206,-337.84250663,0.000187,6]
[364895391,1749285885698,-151.26219868,0.000187,6]
[364895392,1749285887619,-177.80822872,0.000187,6]
[364895393,1749285892023,-164.67401434,0.000187,6]
[364895394,1749285894626,-173.224352,0.000187,6]
[364895395,1749285897143,-153.18414788,0.000187,6]
[364895396,1749285899785,-153.81585563,0.000187,6]
[364895397,1749285901679,-103.09725028,0.000187,6]
[364895398,1749285901706,-287.07143422,0.000188,6]
[364895399,1749285905696,-156.25,0.000188,6]
[364895400,1749285907561,-193.96991892,0.000188,6]
[364895401,1749285909500,-304.76078478,0.000188,6]
[364895402,1749285912827,-262.89,0.000188,6]
[364895403,1749285916566,-151.0,0.000188,6]
[364895404,1749285918405,-336.46751508,0.000188,6]
[364895405,1749285922689,-193.5935424,0.000188,6]
[364895406,1749285926889,-200.0,0.000188,6]
[364895407,1749285930514,-151.0,0.000188,6]
[364895408,1749285933098,-162.9968046,0.000188,6]
[364895409,1749285933125,-10.94433679,0.00018899,2]
[364895410,1749285935658,-213.08809607,0.00018899,2]
[364895411,1749285937428,153.82132803,0.00018,120]
[364895412,1749285937451,2853.82132803,0.00018,120]
[364895413,1749285937475,2853.82132803,0.00018,120]
[364895414,1749285937498,2853.82132803,0.00018,120]
[364895415,1749285937535,2853.82132803,0.00018,120]
[364895416,1749285937563,2853.82132803,0.00018,120]
[364895417,1749285937590,2853.82132803,0.00018,120]
[364895418,1749285937613,2853.82132803,0.00018,120]
[364895419,1749285937639,2853.82132803,0.00018,120]
[364895420,1749285937663,2853.82132803,0.00018,120]
[364895421,1749285937693,100000.0,0.00018,120]
[364895422,1749285937721,25000.0,0.00018,120]
[364895423,1749285937757,5500.0,0.00018,120]
[364895424,1749285937787,5500.0,0.00018,120]
[364895425,1749285937815,5500.0,0.00018,120]
[364895426,1749285937844,5500.0,0.00018,120]
[364895427,1749285937866,700000.0,0.00018,120]
[364895428,1749285937905,300000.0,0.00018,120]
[364895429,1749285937958,1852161.7867197,0.00018,120]
[364895430,1749285938708,-75.96756714,0.00018899,2]
[364895431,1749285938733,-87.6276451,0.00018899,2]
[364895432,1749285957769,147838.2132803,0.00018,120]
[364895433,1749285957797,25000.0,0.00018,120]
[364895434,1749285962117,-233.26759998,0.00018,120]
[364895435,1749285968452,-300.0,0.00018,120]
[364895436,1749285972747,-205.55301078,0.00018,120]
[364895437,1749285975211,-289.10098059,0.00018,120]
[364895438,1749285982401,-153.40830632,0.00018,120]
[364895439,1749285984782,-153.93770231,0.00018,120]
[364895440,1749285989203,-187.50761115,0.00018,120]
[364895441,1749285991076,-189.09,0.0001799,3]
[364895442,1749285991101,-40.42079889,0.00018,120]
[364895443,1749285998585,-159.08408253,0.00017999,2]
[364895444,1749286000457,-0.7399457,0.00017999,2]
[364895445,1749286000480,-208.4630833,0.00017999,2]
[364895446,1749286004856,-222.25878987,0.00017999,2]
[364895447,1749286007783,-21.43633373,0.00017999,2]
[364895448,1749286007808,-257.32321257,0.00017999,2]
[364895449,1749286007832,-79.71520556,0.00017999,2]
[364895450,1749286015037,-138.20584025,0.00017999,2]
[364895451,1749286015061,-13.43415975,0.00017999,2]
[364895452,1749286020899,-194.34840132,0.00017999,2]
[364895453,1749286024399,-151.0,0.00017998,2]
[364895454,1749286029449,-149.0,0.00017998,2]
[364895455,1749286029474,-103.34008226,0.00017999,2]
[364895473,1749286037153,-188.87735667,0.00017999,2]
[364895474,1749286037185,-100.35717009,0.00017999,2]
[364895475,1749286042155,-128.57712042,0.00017999,2]
[364895476,1749286042188,-170.30429656,0.00017999,2]
[364895477,1749286046489,-181.31501508,0.000176,6]
[364895478,1749286049096,-218.39358902,0.000176,6]
[364895479,1749286053589,-232.49831246,0.000176,6]
[364895480,1749286056621,-360.39005499,0.000176,6]
[364895481,1749286057216,-37920.0,0.00018,120]
[364895484,1749286062223,-151.0,0.000176,6]
[364895486,1749286064779,-153.02326821,0.000176,6]
[364895489,1749286071016,-103.37976024,0.000176,6]
[364895490,1749286071040,-96.62994601,0.000177,6]
[364895492,1749286072670,287.9,0.00013699,2]
[364895494,1749286076678,-265.88,0.000177,6]
[364895496,1749286080085,-169.33946265,0.000177,6]
[364895501,1749286091160,-269.68210223,0.000177,6]
[364895503,1749286092900,-236.75786686,0.000177,6]
[364895505,1749286095561,-228.05465388,0.000177,6]
[364895508,1749286100806,-151.0,0.000177,6]
[364895509,1749286102379,-500.0,0.000177,6]
[364895510,1749286104138,-212.17078423,0.000177,6]
[364895512,1749286109907,-299.14814566,0.00017631,2]
[364895513,1749286112223,-170.97,0.00017631,2]
[364895514,1749286115849,-29.88185434,0.00017631,2]
[364895515,1749286115877,-123.46814566,0.000177,6]
[364895516,1749286118898,-403.90807712,0.000177,6]
[364895517,1749286121859,-208.04215768,0.00017632,2]
[364895518,1749286124520,-163.62340537,0.00017632,2]
[364895519,1749286127524,-307.10800911,0.00017632,2]
[364895520,1749286132002,-287.9203489,0.00017632,2]
[364895521,1749286135285,-179.52772659,0.00017632,2]
[364895522,1749286137149,-181.64870902,0.00017441,2]
[364895523,1749286139798,-298.97158427,0.00017441,2]
[364895668,1749286145732,-19.37970671,0.00017441,2]
[364895670,1749286145756,-151.0,0.00017553,2]
[364895672,1749286145783,-159.17422358,0.00017631,2]
[364895713,1749286160182,-140.82577642,0.00017631,2]
[364895714,1749286160210,-107.8752748,0.00017632,2]
[364895717,1749286164613,-274.80076603,0.00017632,2]
[364895722,1749286168510,-151.0,0.00017631,2]
[364895723,1749286170370,-241.77988118,0.00017631,2]
[364895728,1749286174093,-151.0,0.00017212,2]
[364895729,1749286174118,-149.0,0.00017631,2]
[364895730,1749286175951,-293.86897574,0.00017631,2]
[364895731,1749286180973,-175.07867766,0.00017631,2]
[364895735,1749286182705,-270.7548247,0.00017631,2]
[364895736,1749286185802,-185.07772431,0.00017631,2]
[364895740,1749286188254,-178.18102265,0.00017631,2]
[364895746,1749286191692,-151.0,0.00017166,2]
[364895747,1749286191715,-17.35281345,0.00017631,2]
[364895750,1749286194228,-196.7060109,0.00017631,2]
[364895751,1749286196240,-217.55714135,0.00017631,2]
[364895757,1749286199296,-200.97259269,0.00017631,2]
[364895758,1749286202860,-414.81201026,0.00017622,2]
[364895760,1749286205909,-167.45125612,0.00017622,2]
[364895762,1749286209044,-151.0,0.00017153,2]
[364895763,1749286209068,-122.10450116,0.00017622,2]
[364895764,1749286211631,-227.19403926,0.00017622,2]
[364895768,1749286215945,-203.76515372,0.000176,6]
[364895772,1749286219019,-192.18361515,0.00017065,2]
[364895774,1749286225229,-228.25558614,0.00017001,2]
[364895775,1749286231024,-151.0,0.00017001,2]
[364895798,1749286232455,-99.83441386,0.00017001,2]
[364895799,1749286232466,-4681.22828428,0.00017065,2]
[364895800,1749286232478,-2110.51432399,0.00017065,2]